Workbook

Sheet User Guide - Breeding

Sheet Breeding Herd
C1: Breeding Herd Calculator
C2: Purpose – To calculate the cost of producing a weaned pig and margin per weaned pig sold
C3: Target user – Suitable for Breeders and Breeder- Nursery / Feeder producers
C5: How to use the calculator
C6: The yellow boxes require your data
C7: The blue boxes are outcomes calculated from your data
C10: Herd size (served gilts+sows) | E10: 740 | G10: Cost of production (£/piglet weaned)
C12: Unserved gilts | E12: ='Gilt Rearing'!D13 -> 0
C14: Replacement rate (%) | E14: 55 | G14: Replacement gilt rearing | I14: =Calculations!B59 -> 1.685941623
G16: Income from cull sales | I16: =Calculations!$B$64 -> 2.157209665
C18: Total annual AI costs (£) | E18: 13472 | G18: Net Cost of replacement gilt rearing | I18: =I14-I16 -> -0.4712680416
G19: Feed
C20: Sow Mortality (%) | E20: 3 | G20: Sow | I20: =Calculations!B26/'Breeding Herd'!E50 -> 9.179655937
C22: Ave cull sow income ( £ ) | E22: 130 | G22: Creep | I22: =(E65*E34)/E50 -> 0.1556783685
C24: Total annual cull sales (£) | E24: =(Calculations!B34-'Gilt Rearing'!D68) -> 46348.346
G25: Other costs (£/piglet weaned)
C26: Feed costs | G26: Total annual AI costs | I26: =E18/Calculations!B9 -> 0.6270327016
C28: Dry sow diet (£/t) | E28: 175 | G28: Veterinary & Med | I28: 2.2
C30: Lactating sow diet (£/t) | E30: 220 | G30: Transport | I30: 0.54
C32: Rebreeder diet (£/t) | E32: 200 | G32: Electricity & Gas | I32: 1.1
C34: Creep feed (£/t) | E34: 1000 | G34: Water | I34: 0.37
G36: Straw & bedding | I36: 0.8
C38: Breeding herd | G38: Other variable costs | I38: 0.5
C40: Litter per sow year | E40: 2.26 | G40: Labour (including family) | I40: 4.5
C42: Litter size born alive | E42: 14.5 | G42: Building depreciation | I42: 4.22
C44: Pre-weaning mortality (%) | E44: 11.4 | G44: Building repairs & maintenance | I44: 0.1
C46: Weaning age (days) | E46: 26 | G46: Equipment depreciation | I46: 0.48
G48: Equipment repairs & maintenance | I48: 0.05
C50: Pigs weaned per sow year | E50: =(E40*E42)-((E40*E42)*E44/100) -> 29.03422 | G50: Other fixed costs | I50: 1.12
G52: Total cost less Gilt Rearing costs | I52: =Calculations!B46 -> 15.98
C53: Feed Use (per sow)
C54: Dry sow diet (kg/day) | E54: 2.7 | G54: Total Costs (£/sow year) | I54: =I56*E50 -> 739.533491
C56: Lactating sow diet (kg/day) | E56: 8.25 | G56: Total Costs (£/piglet weaned) | I56: =SUM(I18:I26)+I52 -> 25.47109897
C58: Weaning to service (kg/day) | E58: 4 | G58: Sale value of piglet weaned (£/piglet weaned) | I58: 35
C60: Creep feed (kg/litter) | E60: 2
G61: Non-productive days per sow year | I61: =Calculations!B20 -> 46.34
C63: Sow feed usage (t/sow year) | E63: =Calculations!B24 -> 1.37186 | G63: Non-productive days per litter | I63: =I61/E40 -> 20.50442478
C65: Creep feed usage (t/sow year) | E65: =E40*E60/1000 -> 0.00452
C67: Sow feed cost (£/sow year) | E67: =Calculations!B26 -> 266.52415 | G67: Net margin (£/piglet sold) | I67: =(I58-I56) -> 9.528901035

Sheet Gilt Rearing
C1: Gilt Rearing Calculator
C2: Purpose – To calculate the cost of producing a gilt
C3: Target user – Suitable for Breeders and Breeder- Nursery / Feeder producers
C5: How to use the calculator
C6: The yellow boxes require your data
C7: The blue boxes are outcomes calculated from your data
C11: Number of replacement gilts per year | D11: =Calculations!B39 -> 407
C13: Gilts on farm | D13: =(D11*Calculations!B56)/365 -> 0
C15: Gilts culled (%) | D15: =SUM(M36:M38) -> 0
C17: Maiden gilt mortality (%) | D17: =SUM(O36:O38) -> 0
C19: Rearing cost of gilt at entry (£/gilt) | D19: 64
C21: Genetic premium per gilt (£) | D21: 25
C23: Weight at entry (kg) | D23: 60
C25: Weight at first service (kg) | D25: 145
C27: Feed cost and feeding plan (Entry to First Service)
C29: To clear values press the red button
C31: Number of rearing stages | D31: 3
H33: Gilt Weight (kg) | K33: Feed allowance
D34: Feed costs (£/t) | F34: Days | H34: IN | I34: OUT | K34: Daily per gilt (kg) | M34: Gilts culled (%) | O34: Gilt Mortality (%)
C36: Stage 1 | H36: 60
C37: =IF(D31>1,"Stage 2","") -> Stage 2
C38: =IF(D31>2,"Stage 3","") -> Stage 3
C41: Total annual gilt rearing costs | D41: £
C43: Gilt Purchases | D43: =D11*(D19+D21) -> 36223
C45: Feed | D45: =Calculations!I55 -> 0
C47: Total fixed and other variable costs | D47: =Calculations!C45 -> 0
C49: Total | D49: =SUM(D43:D47) -> 36223
C51: FYI
C52: Synchronising costs (£/gilt) | D52: 10
C54: Total Annual Synchronising Costs (£) | D54: =D52*Calculations!B35 -> 4070
C56: Total Annual Genetic Costs (£) | D56: =D21*D11 -> 10175
C59: CULL SOW costs
C60: Ave holding days cull sows | D60: 14
C62: Number cull sows sold | D62: =Calculations!B33 -> 394.79
C64: Total annual cull sow holding days | D64: =D62*D60 -> 5527.06
C66: Cost per day feed + straw + labour+housing ( £ ) | D66: 0.9
C68: Cost for holding cull sows | D68: =D64*D66 -> 4974.354

Sheet Feeding Curve
B1: Feeding Curve
B2: How to use the calculator
B3: The yellow boxes require your data
B4: The blue boxes are outcomes calculated from your data
B6: Number of days before due date sow moved to farrowing house | D6: 4
B7: Average litter size (born alive) | D7: ='Breeding Herd'!E42 -> 14.5
B8: Average days in lactation | D8: 35
B10: Day | C10: Feed allowance (kg)
B11: =IF(Calculations!R5<'Feeding Curve'!$D$8+1,Calculations!R5,"") -> -4 | C11: 2.5
B12: =IF(Calculations!R6<'Feeding Curve'!$D$8+1,Calculations!R6,"") -> -3 | C12: 2.5
B13: =IF(Calculations!R7<'Feeding Curve'!$D$8+1,Calculations!R7,"") -> -2 | C13: 2.5
B14: =IF(Calculations!R8<'Feeding Curve'!$D$8+1,Calculations!R8,"") -> -1 | C14: 2.5
B15: =IF(Calculations!R9<'Feeding Curve'!$D$8+1,Calculations!R9,"") -> 0 | C15: 2.5
B16: =IF(Calculations!R10<'Feeding Curve'!$D$8+1,Calculations!R10,"") -> 1 | C16: 3
B17: =IF(Calculations!R11<'Feeding Curve'!$D$8+1,Calculations!R11,"") -> 2 | C17: 3.5
B18: =IF(Calculations!R12<'Feeding Curve'!$D$8+1,Calculations!R12,"") -> 3 | C18: 4
B19: =IF(Calculations!R13<'Feeding Curve'!$D$8+1,Calculations!R13,"") -> 4 | C19: 4.5
B20: =IF(Calculations!R14<'Feeding Curve'!$D$8+1,Calculations!R14,"") -> 5 | C20: 5
B21: =IF(Calculations!R15<'Feeding Curve'!$D$8+1,Calculations!R15,"") -> 6 | C21: 5.5
B22: =IF(Calculations!R16<'Feeding Curve'!$D$8+1,Calculations!R16,"") -> 7 | C22: 6
B23: =IF(Calculations!R17<'Feeding Curve'!$D$8+1,Calculations!R17,"") -> 8 | C23: 6.5
B24: =IF(Calculations!R18<'Feeding Curve'!$D$8+1,Calculations!R18,"") -> 9 | C24: 7
B25: =IF(Calculations!R19<'Feeding Curve'!$D$8+1,Calculations!R19,"") -> 10 | C25: 7.5
B26: =IF(Calculations!R20<'Feeding Curve'!$D$8+1,Calculations!R20,"") -> 11 | C26: 8
B27: =IF(Calculations!R21<'Feeding Curve'!$D$8+1,Calculations!R21,"") -> 12 | C27: 8.5
B28: =IF(Calculations!R22<'Feeding Curve'!$D$8+1,Calculations!R22,"") -> 13 | C28: 9
B29: =IF(Calculations!R23<'Feeding Curve'!$D$8+1,Calculations!R23,"") -> 14 | C29: 9.5
B30: =IF(Calculations!R24<'Feeding Curve'!$D$8+1,Calculations!R24,"") -> 15 | C30: 10
B31: =IF(Calculations!R25<'Feeding Curve'!$D$8+1,Calculations!R25,"") -> 16 | C31: 10.5
B32: =IF(Calculations!R26<'Feeding Curve'!$D$8+1,Calculations!R26,"") -> 17 | C32: 10.5
B33: =IF(Calculations!R27<'Feeding Curve'!$D$8+1,Calculations!R27,"") -> 18 | C33: 11
B34: =IF(Calculations!R28<'Feeding Curve'!$D$8+1,Calculations!R28,"") -> 19 | C34: 11
B35: =IF(Calculations!R29<'Feeding Curve'!$D$8+1,Calculations!R29,"") -> 20 | C35: 11.5
B36: =IF(Calculations!R30<'Feeding Curve'!$D$8+1,Calculations!R30,"") -> 21 | C36: 11.5
B37: =IF(Calculations!R31<'Feeding Curve'!$D$8+1,Calculations!R31,"") -> 22 | C37: 11.5
B38: =IF(Calculations!R32<'Feeding Curve'!$D$8+1,Calculations!R32,"") -> 23 | C38: 11.5
B39: =IF(Calculations!R33<'Feeding Curve'!$D$8+1,Calculations!R33,"") -> 24 | C39: 11.5
B40: =IF(Calculations!R34<'Feeding Curve'!$D$8+1,Calculations!R34,"") -> 25 | C40: 11.5
B41: =IF(Calculations!R35<'Feeding Curve'!$D$8+1,Calculations!R35,"") -> 26 | C41: 11.5
B42: =IF(Calculations!R36<'Feeding Curve'!$D$8+1,Calculations!R36,"") -> 27 | C42: 11.5
B43: =IF(Calculations!R37<'Feeding Curve'!$D$8+1,Calculations!R37,"") -> 28 | C43: 11.5
B44: =IF(Calculations!R38<'Feeding Curve'!$D$8+1,Calculations!R38,"") -> 29 | C44: 11.5
B45: =IF(Calculations!R39<'Feeding Curve'!$D$8+1,Calculations!R39,"") -> 30 | C45: 11.5
B46: =IF(Calculations!R40<'Feeding Curve'!$D$8+1,Calculations!R40,"") -> 31 | C46: 11.5
B47: =IF(Calculations!R41<'Feeding Curve'!$D$8+1,Calculations!R41,"") -> 32 | C47: 11.5
B48: =IF(Calculations!R42<'Feeding Curve'!$D$8+1,Calculations!R42,"") -> 33 | C48: 11.5
B49: =IF(Calculations!R43<'Feeding Curve'!$D$8+1,Calculations!R43,"") -> 34 | C49: 11.5
B50: =IF(Calculations!R44<'Feeding Curve'!$D$8+1,Calculations!R44,"") -> 35 | C50: 11.5
C52: Total Lactating Feed (kg) | D52: =SUMIFS(C11:C50,B11:B50,">="&0,C11:C50,"<="&D8) -> 327
C53: Ave feed per day = | D53: =D52/D8 -> 9.342857143

Sheet Calculations (hidden)
A2: ='Breeding Herd'!C26 -> Feed costs | R2: Lactation curve
A3: ='Breeding Herd'!C28 -> Dry sow diet (£/t) | B3: ='Breeding Herd'!E28 -> 175
A4: ='Breeding Herd'!C30 -> Lactating sow diet (£/t) | B4: ='Breeding Herd'!E30 -> 220 | R4: Days
A5: ='Breeding Herd'!C32 -> Rebreeder diet (£/t) | B5: ='Breeding Herd'!E32 -> 200 | R5: ='Feeding Curve'!D6*-1 -> -4
A6: ='Breeding Herd'!C34 -> Creep feed (£/t) | B6: ='Breeding Herd'!E34 -> 1000 | R6: =R5+1 -> -3
R7: =R6+1 -> -2
A8: Litters per sow year | B8: ='Breeding Herd'!E40 -> 2.26 | R8: -1
A9: Piglets weaned per year | B9: ='Breeding Herd'!E10*'Breeding Herd'!E50 -> 21485.3228 | R9: 0
R10: 1
A11: ='Breeding Herd'!C54 -> Dry sow diet (kg/day) | B11: ='Breeding Herd'!E54 -> 2.7 | R11: 2
A12: ='Breeding Herd'!C56 -> Lactating sow diet (kg/day) | B12: ='Breeding Herd'!E56 -> 8.25 | R12: 3
A13: ='Breeding Herd'!C58 -> Weaning to service (kg/day) | B13: ='Breeding Herd'!E58 -> 4 | R13: 4
R14: 5
C15: Feed (t) | D15: Feed (£) | R15: 6
A16: Pregnancy (days) | B16: 115 | R16: 7
A17: Lactation (days) | B17: ='Breeding Herd'!E46 -> 26 | R17: 8
A18: Pregnancy (days per sow year) | B18: =B16*B8 -> 259.9 | C18: =B18*B11/1000 -> 0.70173 | D18: =B3*C18 -> 122.80275 | R18: 9
A19: Lactation (days per sow year) | B19: =B17*B8 -> 58.76 | C19: =B19*B12/1000 -> 0.48477 | D19: =B4*C19 -> 106.6494 | R19: 10
A20: Empty (days per sow year) | B20: =365-(B18+B19) -> 46.34 | C20: =(B20*B13)/1000 -> 0.18536 | D20: =C20*B5 -> 37.072 | R20: 11
A21: Empty (days per litter) | B21: =B20/B8 -> 20.50442478 | R21: 12
R22: 13
R23: 14
A24: ='Breeding Herd'!C63 -> Sow feed usage (t/sow year) | B24: =SUM(C18:C20) -> 1.37186 | R24: 15
R25: 16
A26: Sow feed cost (£/sow year) | B26: =SUM(D18:D20) -> 266.52415 | R26: 17
R27: 18
R28: 19
R29: 20
A30: Herd size | B30: ='Breeding Herd'!E10 -> 740 | R30: 21
A31: Replacement Rate (%) | B31: ='Breeding Herd'!E14 -> 55 | R31: 22
A32: Sow mortality ( % ) | B32: ='Breeding Herd'!E20 -> 3 | R32: =R31+1 -> 23
A33: Cull sows sold | B33: =(B35-(B35*B32/100)) -> 394.79 | R33: 24
A34: Cull sow income | B34: =B33*'Breeding Herd'!E22 -> 51322.7 | R34: 25
A35: Net gilt requirement | B35: =B30*B31/100 -> 407 | C35: =B35 -> 407 | R35: 26
A36: Maiden Gilt Mortality (%) | B36: ='Gilt Rearing'!D17 -> 0 | R36: 27
A37: Gilts culled (%) | B37: ='Gilt Rearing'!D15 -> 0 | R37: 28
A38: Total losses (%) | B38: =B36+B37 -> 0 | R38: 29
A39: Total gilt requirement | B39: =B35+B40 -> 407 | R39: 30
A40: Total losses | B40: =(B38*B35)/(100-B38) -> 0 | R40: 31
A41: Gilts on farm | B41: ='Gilt Rearing'!D13 -> 0 | R41: 32
A42: Total breeding females on farm | B42: =B30+B41 -> 740 | R42: 33
A43: Maiden Gilts as a percentage of total breeding herd | B43: =(B41/B42)*100 -> 0 | R43: 34
A44: Breeding herd total fixed and other variable costs (£/weaned piglet) | B44: =SUM('Breeding Herd'!I28:I50) -> 15.98 | C44: =B44*$B$9 -> 343335.4583 | R44: 35
A45: Gilt rearing herd total fixed and other variable costs (£/weaned piglet) | B45: =B44*(B43/100) -> 0 | C45: =B45*$B$9 -> 0
A46: Sow herd total fixed and other variable costs (£/weaned piglet) | B46: =B44-B45 -> 15.98 | C46: =B46*$B$9 -> 343335.4583
A47: Cull sow holding days pre sale ave 14 | B47: ((sow herd x Rep%)-(sow herd x mort%))x14
B49: Days | C49: Annual Gilt Flow | E49: Deaths | F49: Culls | G49: Feed (kg/gilt) | H49: Feed cost (£/gilt) | I49: Total feed cost (£)
C50: IN | D50: OUT
B51: ='Gilt Rearing'!F36 -> 0 | C51: =B39 -> 407 | D51: =C51-(E51+F51) -> 407 | E51: =$C$51*'Gilt Rearing'!O36/100 -> 0 | F51: =$B$39*'Gilt Rearing'!M36/100 -> 0 | G51: ='Gilt Rearing'!K36*'Gilt Rearing'!F36 -> 0 | H51: =G51/1000*'Gilt Rearing'!D36 -> 0 | I51: =H51*((C51+D51)/2) -> 0
A52: ='Gilt Rearing'!C36 -> Stage 1 | B52: ='Gilt Rearing'!F37 -> 0 | C52: =D51 -> 407 | D52: =C52-(E52+F52) -> 407 | E52: =$C$51*'Gilt Rearing'!O37/100 -> 0 | F52: =$B$39*'Gilt Rearing'!M37/100 -> 0 | G52: ='Gilt Rearing'!K37*'Gilt Rearing'!F37 -> 0 | H52: =G52/1000*'Gilt Rearing'!D37 -> 0 | I52: =H52*((C52+D52)/2) -> 0
A53: ='Gilt Rearing'!C37 -> Stage 2 | B53: ='Gilt Rearing'!F38 -> 0 | C53: =D52 -> 407 | D53: =C53-(E53+F53) -> 407 | E53: =$C$51*'Gilt Rearing'!O38/100 -> 0 | F53: =$B$39*'Gilt Rearing'!M38/100 -> 0 | G53: ='Gilt Rearing'!K38*'Gilt Rearing'!F38 -> 0 | H53: =G53/1000*'Gilt Rearing'!D38 -> 0 | I53: 0
A54: ='Gilt Rearing'!C38 -> Stage 3
E55: =SUM(E51:E54) -> 0 | F55: =SUM(F51:F54) -> 0 | G55: 0 | H55: 0 | I55: 0
A56: Total | B56: =SUM(B51:B55) -> 0
A58: Total annual gilt replacement costs (£) | B58: ='Gilt Rearing'!D49 -> 36223
A59: Total annual gilt replacement costs (£/piglet weaned) | B59: =B58/B9 -> 1.685941623
A61: Total annual AI costs (£) | B61: ='Breeding Herd'!E18 -> 13472
A63: Total annual cull sales (£) | B63: ='Breeding Herd'!E24 -> 46348.346
A64: Total annual cull sales (£/piglet weaned) | B64: =B63/B9 -> 2.157209665
